bitfinex/quotes_SOLUSD_20241126
["timestamp","ask_amount","ask_price","bid_price","bid_amount"]
[1732619896415,4.4023,227.15,227.07,26.72079113]
[1732619896741,26.72079113,227.12,227.03,26.72079113]
[1732619897642,26.72079113,227.12,227.05,26.72079113]
[1732619897935,26.72079113,227.12,227.03,26.72079113]
[1732619898145,26.72079113,227.08,227.01,26.72079113]
[1732619898434,26.72079113,227.08,227.0,33.3104]
[1732619898743,23.776884,227.14,227.05,26.72079113]
[1732619898744,26.72079113,227.12,227.05,26.72079113]
[1732619899233,26.72079113,227.14,227.0,37.7156]
[1732619899426,26.72079113,227.12,227.05,26.72079113]
[1732619899626,26.72079113,227.12,227.03,26.72079113]
[1732619900021,26.72079113,227.08,227.01,26.72079113]
[1732619900221,26.72079113,227.06,227.0,33.3104]
[1732619900630,31.12499113,227.06,227.0,33.3104]
[1732619900941,26.72079113,227.01,226.93,71.36669113]
[1732619901316,26.72079113,227.02,226.94,26.72079113]
[1732619901632,26.72079113,227.05,226.97,26.72079113]
[1732619901844,26.72079113,227.1,227.03,26.72079113]
[1732619902211,4.4025,227.14,227.03,26.72079113]
[1732619902212,26.72079113,227.12,227.03,26.72079113]
[1732619902540,4.4025,227.14,227.05,26.72079113]
[1732619902541,31.12329113,227.14,227.05,26.72079113]
[1732619902918,26.72079113,227.12,227.05,26.72079113]
[1732619903634,26.72079113,227.12,227.03,26.72079113]
[1732619903833,26.72079113,227.08,227.01,26.72079113]
[1732619904036,26.72079113,227.04,226.97,26.72079113]
[1732619904212,26.72079113,227.02,226.95,26.72079113]
[1732619904532,5.0,227.13,226.97,26.72079113]
[1732619904533,26.72079113,227.04,226.97,26.72079113]
[1732619904735,31.12389113,227.11,227.02,26.72079113]
[1732619904942,31.12389113,227.11,227.04,26.72079113]
[1732619905244,26.72079113,227.15,227.07,26.72079113]
[1732619905740,31.72079113,227.26,227.1,26.72079113]
[1732619905741,26.72079113,227.18,227.1,26.72079113]
[1732619905930,26.72079113,227.16,227.08,26.72079113]
[1732619906330,26.72079113,227.18,227.1,26.72079113]
[1732619906640,4.4019,227.17,227.1,26.72079113]
[1732619907023,4.4019,227.17,227.02,4.99999999]
[1732619907024,26.72079113,227.16,227.01,0.12549]
[1732619907223,26.72079113,227.16,227.07,26.72079113]
[1732619907636,26.72079113,227.14,227.07,26.72079113]
[1732619908321,26.72079113,227.16,227.07,26.72079113]
[1732619908524,4.4019,227.17,227.09,26.72079113]
[1732619909054,4.4019,227.17,227.11,26.72079113]
[1732619909444,4.4019,227.17,227.07,26.72079113]
[1732619909445,26.72079113,227.16,227.07,26.72079113]
[1732619909826,26.72079113,227.16,227.09,26.72079113]
[1732619910249,26.72079113,227.12,227.05,26.72079113]
[1732619910451,26.72079113,227.12,227.02,4.4048]
[1732619910452,26.72079113,227.1,227.03,26.72079113]
[1732619910648,26.72079113,227.08,227.01,26.72079113]
[1732619911323,26.72079113,227.08,227.01,31.12579113]
[1732619911522,26.72079113,227.06,227.0,31.4445]
[1732619911730,26.72079113,227.04,227.0,31.4445]
[1732619912541,26.72079113,227.04,226.97,26.72079113]
[1732619912925,26.72079113,227.04,226.94,30.4006]
[1732619912926,26.72079113,226.98,226.94,30.4006]
[1732619913134,26.72079113,226.96,226.89,26.72079113]
[1732619913330,26.72079113,226.93,226.87,30.4006]
[1732619913851,26.72079113,226.97,226.9,26.72079113]
[1732619914032,26.72079113,226.99,226.92,26.72079113]
[1732619914236,31.12569113,227.02,226.94,26.72079113]
[1732619914438,31.12569113,227.02,226.87,34.8083]
[1732619914439,23.776884,227.07,226.89,0.12549]
[1732619914633,26.72079113,227.04,226.89,0.12549]
[1732619914940,26.72079113,227.02,226.91,0.12549]
[1732619915249,26.72079113,227.02,226.95,26.72079113]
[1732619915448,26.72079113,227.05,226.97,26.72079113]
[1732619915752,26.72079113,227.06,226.99,26.72079113]
[1732619915931,26.72079113,227.07,226.99,26.72079113]
[1732619916325,26.72079113,227.07,226.93,26.97177113]
[1732619916326,26.72079113,227.07,227.0,26.72079113]
[1732619916544,26.72079113,227.05,226.94,12.5903]
[1732619916748,17.5179,227.14,227.01,26.72079113]
[1732619916749,26.72079113,227.09,227.01,26.72079113]
[1732619916942,26.72079113,227.08,227.01,26.72079113]
[1732619917142,26.72079113,227.1,227.02,26.72079113]
[1732619917359,4.4023,227.15,227.05,26.72079113]
[1732619917650,26.72079113,227.13,227.06,26.72079113]
[1732619917830,26.72079113,227.13,227.04,26.72079113]
[1732619918033,26.72079113,227.13,227.05,26.72079113]
[1732619918565,26.72079113,227.18,227.1,26.72079113]
[1732619919032,26.72079113,227.16,227.09,26.72079113]
[1732619919228,26.72079113,227.16,227.08,26.72079113]
[1732619919435,26.72079113,227.17,227.09,26.72079113]
[1732619920454,26.72079113,227.19,227.11,26.72079113]
[1732619921469,26.72079113,227.15,227.07,26.72079113]
[1732619921753,26.72079113,227.16,227.09,26.72079113]
[1732619922053,26.72079113,227.14,227.06,26.72079113]
[1732619922357,26.72079113,227.13,227.05,26.72079113]
[1732619922738,26.72079113,227.11,227.03,26.72079113]
[1732619923056,26.72079113,227.09,227.01,26.72079113]
[1732619923258,26.72079113,227.15,226.99,30.4006]
[1732619923259,26.72079113,227.03,226.99,30.4006]
[1732619923559,26.72079113,227.01,226.94,12.5903]
[1732619923761,26.72079113,227.01,226.93,26.72079113]
[1732619924161,4.4048,227.03,226.95,26.72079113]
[1732619924162,26.72079113,227.03,226.95,26.72079113]
[1732619924342,26.72079113,227.07,226.98,26.72079113]
[1732619924834,26.72079113,227.07,227.0,26.72079113]
[1732619925736,26.72079113,227.09,227.0,31.12599113]
[1732619926268,26.72079113,227.05,226.98,26.72079113]
[1732619927054,26.72079113,227.07,227.0,26.72079113]
[1732619927256,26.72079113,227.09,227.0,26.72079113]
[1732619927459,31.12429113,227.09,227.0,31.12599113]
[1732619927638,31.12429113,227.09,227.0,26.72079113]
[1732619927838,26.72079113,227.07,227.0,26.72079113]
[1732619928058,23.776884,227.08,226.98,31.12619113]
[1732619928059,26.72079113,227.05,226.98,31.12619113]
[1732619928268,26.72079113,227.05,226.98,26.72079113]
[1732619928459,26.72079113,227.05,226.96,26.72079113]
[1732619928668,26.72079113,227.03,226.96,26.72079113]
[1732619928833,26.72079113,227.03,226.93,4.53209]
[1732619928834,26.72079113,227.05,226.98,26.72079113]
[1732619929037,26.72079113,227.05,226.96,26.72079113]
[1732619929239,26.72079113,227.05,226.98,26.72079113]
[1732619929670,26.72079113,227.05,226.98,31.12639113]
[1732619929857,26.72079113,227.07,227.0,26.72079113]
[1732619931072,26.72079113,227.09,227.02,26.72079113]
[1732619931388,20.23,227.03,227.02,26.72079113]
[1732619931550,20.23,227.03,227.0,31.12599113]
[1732619931866,20.23,227.03,226.96,31.12669113]
[1732619932067,20.23,227.03,227.0,26.72079113]
[1732619932248,20.23,227.03,227.02,26.72079113]
[1732619932563,10.90643276,227.03,227.02,26.72079113]
[1732619933054,10.90643276,227.03,227.02,31.12559113]
[1732619933561,26.72079113,227.1,227.02,31.12559113]
[1732619934049,4.4033,227.1,227.04,26.72079113]
[1732619934251,26.72079113,227.08,227.0,26.72079113]
[1732619934554,26.72079113,227.06,226.98,31.12639113]
[1732619935349,31.12499113,227.06,226.98,26.72079113]
[1732619935763,31.12499113,227.06,226.98,31.12639113]
[1732619935965,31.12499113,227.06,226.98,26.72079113]
[1732619936168,26.72079113,227.04,226.96,26.72079113]
[1732619936463,26.72079113,227.02,226.94,26.72079113]
[1732619937171,26.72079113,227.04,226.96,26.72079113]
[1732619937674,26.72079113,227.02,226.94,26.72079113]
[1732619938851,31.12569113,227.02,226.94,31.12709113]
[1732619939453,31.12569113,227.02,226.92,57.12139113]
[1732619939454,26.72079113,227.0,226.92,57.12139113]
[1732619939655,26.72079113,226.96,226.88,26.72079113]
[1732619939861,26.72079113,226.96,226.88,4.4075]
[1732619940379,26.72079113,226.94,226.86,58.85419113]
[1732619940564,15.4171,227.02,226.75,12.836592]
[1732619940565,26.72079113,226.9,226.8,32.1334]
[1732619940766,5.0,226.98,226.8,32.1334]
[1732619940767,26.72079113,226.88,226.8,58.85419113]
[1732619940971,26.72079113,226.88,226.8,63.26319113]
[1732619941216,26.72079113,226.9,226.82,26.72079113]
[1732619942252,11.0145,226.98,226.8,36.5424]
[1732619942253,26.72079113,226.94,226.86,26.72079113]
[1732619943067,26.72079113,226.9,226.82,26.72079113]
[1732619943262,26.72079113,226.9,226.8,58.85419113]
[1732619943482,26.72079113,226.88,226.8,58.85419113]
[1732619943777,26.72079113,226.86,226.8,32.1334]
[1732619944486,26.72079113,226.88,226.8,63.26329113]
[1732619944856,26.72079113,226.9,226.82,26.72079113]
[1732619945280,26.72079113,226.9,226.82,31.12949113]
[1732619945497,26.72079113,226.94,226.86,26.72079113]
[1732619945786,31.12689113,226.96,226.88,26.72079113]
[1732619946272,26.72079113,226.96,226.88,26.72079113]
[1732619946454,26.72079113,227.0,226.93,26.72079113]
[1732619946662,26.72079113,227.02,226.95,26.72079113]
[1732619946887,4.4047,227.03,226.95,26.72079113]
[1732619947076,26.72079113,227.06,226.98,26.72079113]
[1732619947279,26.72079113,227.06,227.0,26.72079113]
[1732619947666,26.72079113,227.08,227.0,26.72079113]
[1732619948855,31.12449113,227.08,227.0,26.72079113]
[1732619949060,23.776884,227.07,227.0,26.72079113]
[1732619949762,31.12449113,227.08,227.0,26.72079113]
[1732619949763,26.72079113,227.08,227.0,31.12599113]
[1732619950084,4.4014,227.2,227.07,26.72079113]
[1732619950454,26.72079113,227.17,227.09,26.72079113]
[1732619950860,26.72079113,227.17,227.09,31.12419113]
[1732619951187,26.72079113,227.17,206.06,131.48647889]
[1732619951188,26.72079113,227.15,227.07,26.72079113]
[1732619951484,26.72079113,227.13,227.05,26.72079113]
[1732619952057,26.72079113,227.09,227.01,26.72079113]
[1732619952979,26.72079113,227.11,227.03,26.72079113]
[1732619953377,26.72079113,227.09,227.01,26.72079113]
[1732619954594,26.72079113,227.14,227.06,26.72079113]
[1732619954896,26.72079113,227.18,227.1,26.72079113]
[1732619955098,26.72079113,227.2,227.12,26.72079113]
[1732619956388,26.72079113,227.18,227.1,58.85419113]
[1732619956599,26.72079113,227.18,227.1,63.25749113]
[1732619957300,26.72079113,227.14,227.06,26.72079113]
[1732619957797,26.72079113,227.18,227.12,26.72079113]
[1732619957970,26.72079113,227.22,227.14,26.72079113]
[1732619958171,26.72079113,227.21,227.13,26.72079113]
[1732619958677,26.72079113,227.17,227.09,31.12429113]
[1732619959387,26.72079113,227.17,227.09,26.72079113]
[1732619959696,26.72079113,227.17,227.03,30.1461]
[1732619959697,26.72079113,227.17,227.11,26.72079113]
[1732619960073,26.72079113,227.13,227.05,26.72079113]
[1732619960369,26.72079113,227.13,227.05,31.12499113]
[1732619960572,26.72079113,227.13,227.03,56.86689113]
[1732619960573,26.72079113,227.11,227.03,56.86689113]
[1732619960775,26.72079113,227.09,227.03,30.1461]
[1732619960976,26.72079113,227.04,226.96,4.406]
[1732619961205,26.72079113,227.03,226.96,4.406]
[1732619961894,26.72079113,226.99,226.94,30.1461]
[1732619962089,26.72079113,226.99,226.92,4.4067]
[1732619962594,31.12639113,226.99,226.91,26.72079113]
[1732619962793,26.72079113,226.99,226.91,31.12779113]
[1732619963103,26.72079113,226.97,226.89,31.12799113]
[1732619963282,26.72079113,226.99,226.91,26.72079113]
[1732619963776,4.4047,227.03,226.85,26.72079113]
[1732619963777,26.72079113,226.93,226.85,26.72079113]
[1732619963991,26.72079113,226.91,226.83,26.72079113]
[1732619964171,26.72079113,226.89,226.82,4.4087]
[1732619964794,26.72079113,226.91,226.83,26.72079113]
[1732619964996,26.72079113,226.85,226.79,30.1461]
[1732619965200,26.72079113,226.83,226.75,34.55738314]
[1732619965407,26.72079113,226.83,226.75,38.96748314]
[1732619965618,26.72079113,226.81,226.75,7.83659201]
[1732619965904,26.72079113,226.77,226.75,7.83659201]
[1732619966105,23.776884,226.76,226.75,7.83659201]
[1732619966274,28.186784,226.76,226.75,7.83659201]
[1732619967423,33.186784,226.76,226.75,7.83659201]
[1732619967581,26.72079113,226.65,226.57,26.72079113]
[1732619967906,26.72079113,226.63,226.56,0.5155983]
[1732619968293,26.72079113,226.71,226.56,0.5155983]
[1732619968294,43.48382353,226.65,226.56,48.41322183]
[1732619968792,43.48382353,226.63,226.56,43.99942183]
[1732619969111,43.48382353,226.63,226.56,0.5155983]
[1732619969298,43.48382353,226.61,226.56,0.5155983]
[1732619969606,43.48382353,226.63,226.56,0.5155983]
[1732619970194,43.48382353,226.67,226.58,47.89712353]
[1732619970406,43.48382353,226.65,226.58,43.48382353]
[1732619970579,43.48382353,226.65,226.56,48.41312183]
[1732619970986,43.48382353,226.63,226.56,43.99942183]
[1732619971182,43.48382353,226.65,226.56,48.41322183]
[1732619971386,43.48382353,226.65,226.58,43.48382353]
[1732619971589,43.48382353,226.67,226.58,43.48382353]
[1732619971907,23.776884,226.71,226.56,4.9293983]
[1732619971908,43.48382353,226.63,226.56,0.5155983]
[1732619972287,43.48382353,226.65,226.58,43.48382353]
[1732619972613,43.48382353,226.67,226.58,43.48382353]
[1732619973102,43.48382353,226.63,226.56,48.41312183]
[1732619973608,43.48382353,226.63,226.56,0.5155983]
[1732619973911,4.4114,226.69,226.56,0.5155983]
[1732619973912,43.48382353,226.59,226.56,0.5155983]
[1732619974086,43.48382353,226.57,226.56,0.5155983]
[1732619974487,43.48382353,226.59,226.56,0.5155983]
[1732619975092,43.48382353,226.57,226.56,0.5155983]
[1732619975309,67.26070753,226.57,226.56,0.5155983]
[1732619976515,71.67430753,226.57,226.56,0.5155983]
[1732619976810,43.48382353,226.57,226.56,0.5155983]
[1732619976988,24.1738,226.66,226.56,0.5155983]
[1732619976989,43.48382353,226.59,226.56,0.5155983]
[1732619977191,43.48382353,226.63,226.56,0.5155983]
[1732619977414,43.48382353,226.63,226.56,4.9292983]
[1732619977911,43.48382353,226.63,226.56,0.5155983]
[1732619978294,43.48382353,226.61,226.56,0.5155983]
[1732619978703,43.48382353,226.59,226.56,0.5155983]
[1732619979207,43.48382353,226.61,226.56,0.5155983]
[1732619980402,43.48382353,226.59,226.56,0.5155983]
[1732619980720,43.48382353,226.57,226.56,0.5155983]
[1732619982293,67.26070753,226.57,226.56,0.5155983]
[1732619982492,47.89742353,226.57,226.56,0.5155983]
[1732619983325,43.48382353,226.57,226.56,0.5155983]
[1732619983615,47.89672353,226.61,226.56,0.5155983]
[1732619985299,43.48382353,226.57,226.56,0.5155983]
[1732619985694,43.48382353,226.6,226.56,0.5155983]
[1732619986028,20.19293327,226.58,226.56,0.5155983]
[1732619986233,43.48382353,226.6,226.56,0.5155983]
[1732619986517,43.48382353,226.59,226.56,0.5155983]
[1732619986811,43.48382353,226.6,226.56,0.5155983]
[1732619987213,23.24143556,227.45,226.56,0.5155983]
[1732619987214,43.48382353,226.62,226.56,43.99942183]
[1732619987395,43.48382353,226.66,226.58,43.48382353]
[1732619987991,43.48382353,226.62,226.56,0.5155983]
[1732619988325,43.48382353,226.58,226.56,0.5155983]
[1732619989007,43.48382353,226.62,226.56,0.5155983]
[1732619989722,43.48382353,226.63,226.56,0.5155983]
[1732619989901,4.4115,226.68,226.56,0.5155983]
[1732619989902,43.48382353,226.65,226.58,43.48382353]
[1732619990095,43.48382353,226.67,226.59,43.48382353]
[1732619990301,26.74576781,226.71,226.63,26.74576781]
[1732619990593,31.15626781,226.73,226.66,26.74576781]
[1732619990998,4.4105,226.73,226.66,26.74576781]
[1732619991219,31.15626781,226.73,226.66,26.74576781]
[1732619991517,31.15626781,226.73,226.64,26.74576781]
[1732619992122,26.74576781,226.65,226.56,0.5155983]
[1732619992299,43.49846884,226.62,226.56,0.5155983]
[1732619992920,4.4128,226.61,226.56,0.5155983]
[1732619994208,43.49846884,226.65,226.57,43.49846884]
[1732619994412,48.49846884,226.71,226.56,0.5155983]
[1732619994413,43.49846884,226.63,226.56,0.5155983]
[1732619994929,43.49846884,226.65,226.57,43.49846884]
[1732619995421,4.4115,226.68,226.61,43.49846884]
[1732619995619,43.49846884,226.67,226.59,43.49846884]
[1732619996121,4.4115,226.68,226.57,4.4135]
[1732619996122,43.49846884,226.65,226.57,43.49846884]
[1732619996316,43.49846884,226.62,226.56,0.5155983]
[1732619996513,43.49846884,226.62,226.56,4.9293983]
[1732619996833,43.49846884,226.7,226.6,43.49846884]
[1732619997120,43.49846884,226.72,226.64,47.91056884]
[1732619997329,43.49846884,226.7,226.62,43.49846884]
[1732619998198,43.49846884,226.67,226.59,43.62395884]
[1732619998424,43.49846884,226.67,226.59,43.49846884]
[1732619999219,43.49846884,226.67,226.59,47.91156884]
[1732619999420,43.49846884,226.69,226.61,43.49846884]
[1732620000730,43.49846884,226.67,226.59,43.49846884]
[1732620000895,43.49846884,226.65,226.57,43.49846884]
[1732620001252,43.49846884,226.67,226.59,43.49846884]
[1732620001396,47.90976884,226.69,226.61,43.49846884]
[1732620001722,43.49846884,226.69,226.61,43.49846884]
[1732620001920,4.4111,226.71,226.63,43.49846884]
[1732620001921,43.49846884,226.71,226.63,43.49846884]
[1732620002104,47.90936884,226.71,226.63,43.49846884]
[1732620002302,43.49846884,226.69,226.61,43.49846884]
[1732620002519,17.339,226.8,226.64,43.49846884]
[1732620002520,43.49846884,226.72,226.64,43.49846884]
[1732620002726,4.4101,226.75,226.57,10.07530521]
[1732620002727,47.90876884,226.74,226.66,47.91026884]
[1732620003231,43.49846884,226.72,226.65,4.412]
[1732620003599,43.49846884,226.73,226.65,47.91046884]
[1732620003801,43.49846884,226.76,226.69,43.49846884]
[1732620004201,43.49846884,226.76,226.69,74.92996884]
[1732620004517,43.49846884,226.82,226.69,74.92996884]
[1732620004518,4.4075,226.89,226.75,43.49846884]
[1732620004724,43.49846884,226.89,226.81,43.49846884]
[1732620004919,12.456,226.94,226.83,43.49846884]
[1732620004920,47.90546884,226.91,226.83,43.49846884]
[1732620005116,43.49846884,226.89,226.81,43.49846884]
[1732620005821,47.90596884,226.89,226.81,43.49846884]
[1732620006017,43.49846884,226.87,226.79,47.90766884]
[1732620006226,43.49846884,226.87,226.79,43.49846884]
[1732620006606,47.90506884,226.93,226.85,43.49846884]
[1732620006805,43.49846884,226.91,226.83,43.49846884]
[1732620007205,43.49846884,226.89,226.81,43.49846884]
[1732620008625,43.49846884,226.89,226.81,47.90736884]
[1732620009209,4.4066,226.94,226.87,43.49846884]
[1732620009419,43.49846884,226.91,226.84,31.4315]
[1732620009806,43.49846884,226.98,226.9,43.49846884]
[1732620010020,43.49846884,227.01,226.94,43.49846884]
[1732620010228,43.49846884,227.03,226.94,43.49846884]
[1732620010535,4.4047,227.03,226.96,43.49846884]
[1732620010717,43.49846884,227.02,226.94,43.49846884]
[1732620010917,43.49846884,227.0,226.92,43.49846884]
[1732620011316,43.49846884,226.98,226.9,43.49846884]
[1732620011908,43.49846884,227.01,226.93,43.49846884]
[1732620012137,43.49846884,227.03,226.95,43.49846884]
[1732620013141,43.49846884,227.01,226.93,43.49846884]
[1732620013324,43.49846884,227.02,226.94,43.49846884]
[1732620013520,43.49846884,227.04,226.96,43.49846884]
[1732620013711,43.49846884,227.06,226.98,43.49846884]
[1732620013915,43.49846884,227.09,227.02,43.49846884]
[1732620014409,26.65512764,227.08,227.01,26.65512764]
[1732620014609,26.65512764,227.1,227.01,26.65512764]
[1732620014811,26.65512764,227.1,227.03,26.65512764]
[1732620015411,26.65512764,227.1,227.03,31.05972764]
[1732620015612,26.65512764,227.12,227.05,26.65512764]
[1732620015839,26.65512764,227.14,227.05,26.65512764]
[1732620016018,26.65512764,227.14,227.07,26.65512764]
[1732620016340,26.65512764,227.16,227.09,26.65512764]
[1732620016541,26.65512764,227.18,227.09,26.65512764]
[1732620016837,26.65512764,227.18,227.11,26.65512764]
[1732620017040,26.65512764,227.2,227.11,26.65512764]
[1732620017407,31.05652764,227.2,227.11,26.65512764]
[1732620017612,26.65512764,227.18,227.11,26.65512764]
[1732620017843,26.65512764,227.13,227.05,26.65512764]
[1732620018015,26.65512764,227.09,227.01,26.65512764]
[1732620018214,26.65512764,227.09,226.97,12.0004]
[1732620018215,26.65512764,227.05,226.97,38.65552764]
[1732620018433,12.0926,227.14,226.98,4.4056]
[1732620018616,12.0926,227.14,226.97,4.4058]
[1732620018814,23.776884,227.13,226.98,4.4055]
[1732620019140,23.776884,227.13,226.96,4.4059]
[1732620019337,4.4029,227.12,226.94,4.99999999]
[1732620019523,26.65512764,227.09,227.02,26.65512764]
[1732620019835,26.65512764,227.06,227.0,26.65512764]
[1732620020049,26.65512764,227.1,227.03,26.65512764]
[1732620020214,31.05742764,227.15,227.06,26.65512764]
[1732620020414,31.05742764,227.15,227.0,0.12549]
[1732620020415,43.29145827,227.15,227.07,43.29145827]
[1732620020746,43.29145827,227.17,227.1,43.29145827]
[1732620020945,43.29145827,227.19,227.1,43.29145827]
[1732620021325,43.29145827,227.19,227.12,43.29145827]
[1732620021723,47.69305827,227.19,227.12,43.29145827]
[1732620021918,43.29145827,227.19,227.12,43.29145827]
[1732620022129,43.29145827,227.22,227.14,43.29145827]
[1732620022727,43.29145827,227.22,227.16,43.29145827]
[1732620022918,43.29145827,227.24,227.16,43.29145827]
[1732620023121,43.29145827,227.22,227.14,43.29145827]
[1732620023416,12.0926,227.34,227.17,43.29145827]
[1732620023620,12.0926,227.34,227.19,43.29145827]
[1732620023621,43.29145827,227.27,227.19,43.29145827]
[1732620024515,43.29145827,227.27,227.15,43.29145827]
[1732620024516,43.29145827,227.23,227.15,43.29145827]
[1732620025632,43.29145827,227.27,227.19,43.29145827]
[1732620026345,43.29145827,227.23,227.15,43.29145827]
[1732620026926,20.3967,227.32,227.17,43.29145827]
[1732620026927,43.29145827,227.25,227.17,43.29145827]
[1732620027220,43.29145827,227.29,227.21,43.29145827]
[1732620027421,43.29145827,227.27,227.19,43.29145827]
[1732620027728,43.29145827,227.29,227.21,43.29145827]
[1732620028949,43.29145827,227.29,227.22,23.776884]
[1732620029134,43.29145827,227.31,227.23,43.29145827]
[1732620029331,43.29145827,227.27,227.19,43.29145827]
[1732620029537,47.69145827,227.27,227.19,43.29145827]
[1732620029742,43.29145827,227.27,227.19,47.69295827]
[1732620030053,43.29145827,227.27,227.19,43.29145827]
[1732620030054,47.69155827,227.27,227.19,43.29145827]
[1732620030425,47.69155827,227.27,227.15,47.69365827]
[1732620030426,43.29145827,227.25,227.15,47.69365827]
[1732620030749,43.29145827,227.23,227.15,43.29145827]
[1732620030951,43.29145827,227.21,227.13,43.29145827]
[1732620031126,43.29145827,227.17,227.09,43.29145827]
[1732620031525,43.29145827,227.15,227.07,92.87695827]
[1732620031820,43.29145827,227.15,227.07,75.45725827]
[1732620032036,43.29145827,227.11,227.03,43.29145827]
[1732620032246,43.29145827,227.05,226.97,43.29145827]
[1732620032448,43.29145827,227.03,226.95,60.91023027]
[1732620032629,43.29145827,227.03,226.95,43.29145827]
[1732620033156,43.29145827,227.01,226.93,43.29145827]
[1732620033331,43.29145827,227.05,226.97,43.29145827]
[1732620033532,43.29145827,227.07,226.99,43.29145827]
[1732620033755,43.29145827,227.11,227.03,43.29145827]
[1732620035837,43.29145827,227.13,227.08,20.0]
[1732620036056,43.29145827,227.17,227.09,43.29145827]
[1732620036349,43.29145827,227.15,227.07,43.29145827]
[1732620036935,43.29145827,227.15,227.05,43.29145827]
[1732620037158,15.4035,227.22,227.03,43.29145827]
[1732620037159,43.29145827,227.11,227.03,43.29145827]
[1732620037355,43.29145827,227.13,227.05,43.29145827]
[1732620037845,43.29145827,227.13,227.05,47.69565827]
[1732620038045,43.29145827,227.18,227.11,43.29145827]
[1732620038357,43.29145827,227.2,227.11,43.29145827]
[1732620039337,4.4016,227.19,227.11,43.29145827]
[1732620039543,43.29145827,227.18,227.11,43.29145827]
[1732620039744,43.29145827,227.2,227.11,47.69435827]
[1732620040158,43.29145827,227.23,227.15,43.29145827]
[1732620040552,4.4008,227.24,227.15,43.29145827]
[1732620040758,47.69195827,227.25,227.17,43.29145827]
[1732620040955,43.29145827,227.25,227.17,43.29145827]
[1732620041144,47.69115827,227.29,227.22,43.29145827]
[1732620041353,43.29145827,227.29,227.22,43.29145827]
[1732620042050,47.69115827,227.29,227.21,4.4011]
[1732620042247,47.69115827,227.29,227.15,31.79501288]
[1732620042440,47.69115827,227.29,227.21,43.29145827]
[1732620042644,43.29145827,227.27,227.19,43.29145827]
[1732620042861,43.29145827,227.25,227.17,43.29145827]
[1732620043745,43.29145827,227.27,227.19,43.29145827]
[1732620043966,43.29145827,227.27,227.21,43.29145827]
[1732620045164,43.29145827,227.27,227.19,43.29145827]
[1732620046288,43.29145827,227.29,227.23,43.29145827]
[1732620046473,20.0,227.32,227.18,26.60516264]
[1732620046474,26.60516264,227.25,227.18,26.60516264]
[1732620046761,26.60516264,227.25,227.19,20.0]
[1732620046968,26.60516264,227.23,227.16,26.60516264]
[1732620047173,26.60516264,227.23,227.14,26.60516264]
[1732620047749,26.60516264,227.21,227.14,26.60516264]
[1732620047958,26.60516264,227.17,227.1,39.17456264]
[1732620048360,26.60516264,227.17,227.1,26.60516264]
[1732620048662,26.60516264,227.17,227.08,26.60516264]
[1732620049064,26.60516264,227.11,227.07,33.2521]
[1732620049370,26.60516264,227.08,226.99,39.17456264]
[1732620049556,26.60516264,227.05,226.99,12.5694]
[1732620049865,26.60516264,227.15,227.04,26.60516264]
[1732620050067,26.60516264,227.15,227.06,26.60516264]
[1732620050267,43.29260079,227.14,227.06,43.29260079]
[1732620051459,43.29260079,227.1,227.02,43.29260079]
[1732620051676,43.29260079,227.04,226.96,43.29260079]
[1732620052360,43.29260079,227.02,226.94,43.29260079]
[1732620052570,43.29260079,227.0,226.92,43.29260079]
[1732620052763,43.29260079,226.98,226.9,74.75570079]
[1732620053069,43.29260079,227.02,226.94,43.29260079]
[1732620053566,11.0092,227.09,226.92,43.29260079]
[1732620053567,43.29260079,227.0,226.92,43.29260079]
[1732620054748,4.4051,227.01,226.9,74.75570079]
[1732620054749,43.29260079,226.98,226.9,74.75570079]
[1732620055259,43.29260079,227.0,226.92,43.29260079]
[1732620055769,43.29260079,226.94,226.9,31.4631]
[1732620056175,43.29260079,226.94,226.85,43.29260079]
[1732620056472,43.29260079,226.9,226.83,31.4631]
[1732620056662,43.29260079,226.9,226.81,43.29260079]
[1732620056663,43.29260079,226.88,226.79,43.29260079]
[1732620057472,43.29260079,226.88,226.76,31.4631]
[1732620057473,43.29260079,226.88,226.81,43.29260079]
[1732620057653,43.29260079,226.9,226.81,43.29260079]
[1732620058072,43.29260079,226.86,226.79,43.29260079]
[1732620058280,43.29260079,226.86,226.77,43.29260079]
[1732620058450,43.29260079,226.86,226.79,43.29260079]
[1732620058650,13.199,226.95,226.79,43.29260079]
[1732620058651,43.29260079,226.88,226.79,43.29260079]
[1732620058875,43.29260079,226.88,226.81,43.29260079]
[1732620059064,43.29260079,226.88,226.79,43.29260079]
[1732620059373,43.29260079,226.86,226.79,43.29260079]
[1732620059571,43.29260079,226.84,226.76,31.4631]
[1732620060451,43.29260079,226.84,226.77,43.29260079]
[1732620060675,43.29260079,226.84,226.76,31.4631]
[1732620061050,43.29260079,226.86,226.79,43.29260079]
[1732620061307,43.29260079,226.9,226.81,43.29260079]
[1732620061458,43.29260079,226.92,226.83,43.29260079]
[1732620062162,43.29260079,226.9,226.81,43.29260079]
[1732620062382,43.29260079,226.9,226.76,33.24327358]
[1732620062383,43.29260079,226.88,226.79,43.29260079]
[1732620062877,43.29260079,226.84,226.77,43.29260079]